[Event "121st Swiss Championship 2022"]
[Site "Samnaun-Compatsch"]
[Date "2022.07.04"]
[Round "1.11"]
[White "Pogan, Nikolas"]
[Black "Grillon, Cedric"]
[Result "1/2-1/2"]
[ECO "A40"]
[WhiteElo "2226"]
[BlackElo "1977"]
[Annotator "RC"]
[PlyCount "177"]
[EventDate "2022.06.28"]
[EventType "swiss"]
[EventCountry "SUI"]
[SourceTitle "playchess.com"]
[Source "ChessBase"]
[SourceQuality "1"]
[TimeControl "40/5400+30:1800+30"]

1. d4 {[%emt 0:01:12]} b5 {[%emt 0:01:48]} 2. c3 {[%emt 0:02:36]} Bb7 {[%emt 0:03:33]} 3. Qb3 {[%emt 0:00:10]} a6 {[%emt 0:00:25]} 4. a4 {[%emt 0:00:06]} c6 {[%emt 0:01:23]} 5. Nf3 {[%emt 0:12:54]} e6 {[%emt 0:12:34]} 6. g3 {[%emt 0:01:23]} b4 {[%emt 0:08:52]} 7. a5 {[%emt 0:08:54]} c5 {[%emt 0:07:11]} 8. dxc5 {[%emt 0:00:20]} Bxc5 {[%emt 0:00:28]} 9. cxb4 {[%emt 0:00:31]} Be7 {[%emt 0:02:06]} 10. Bg2 {[%emt 0:06:17]} Nc6 {[%emt 0:03:19]} 11. Bd2 {[%emt 0:00:41]} Rb8 {[%emt 0:02:19]} 12. O-O {[%emt 0:01:04]} Nxb4 {[%emt 0:02:08]} 13. Bxb4 {[%emt 0:03:46]} Bxb4 {[%emt 0:02:21]} 14. Qxb4 {[%emt 0:02:54]} Bxf3 {[%emt 0:03:34]} 15. Qc4 {[%emt 0:10:26]} Bxg2 {[%emt 0:00:53]} 16. Kxg2 {[%emt 0:00:10]} Rxb2 {[%emt 0:04:00]} 17. Qxa6 {[%emt 0:00:36]} Ne7 {[%emt 0:00:43]} 18. Nc3 {[%emt 0:02:45]} O-O {[%emt 0:03:01]} 19. Na4 {[%emt 0:00:55]} Rb4 {[%emt 0:03:39]} 20. Nb6 {[%emt 0:04:48]} Nc6 {[%emt 0:01:32]} 21. Rfb1 {[%emt 0:02:07]} Qc7 {[%emt 0:09:13]} 22. Rxb4 {[%emt 0:02:05]} Nxb4 {[%emt 0:00:45]} 23. Qb5 {[%emt 0:00:45]} Nc6 {[%emt 0:04:51]} 24. Rc1 {[%emt 0:08:57]} Rb8 {[%emt 0:01:02]} 25. Qc5 {[%emt 0:00:23]} Qb7 {[%emt 0:00:35]} 26. Kg1 {[%emt 0:00:33]} g6 {[%emt 0:04:26]} 27. Nxd7 {[%emt 0:16:57]} Qxd7 {[%emt 0:00:21]} 28. Qxc6 {[%emt 0:00:03]} Qxc6 {[%emt 0:00:19]} 29. Rxc6 {[%emt 0:00:04]} Rb3 {[%emt 0:00:14]} 30. f3 {[%emt 0:01:10]} Ra3 {[%emt 0:00:12]} 31. Ra6 {[%emt 0:00:07]} Kg7 {[%emt 0:00:07]} 32. Kf2 {[%emt 0:00:10]} Kf6 {[%emt 0:00:08]} 33. Ra7 {[%emt 0:00:09]} g5 {[%emt 0:00:47]} 34. a6 {[%emt 0:00:22]} h6 {[%emt 0:03:13]} 35. Ke1 {[%emt 0:00:43]} Ra2 {[%emt 0:00:10]} 36. Kd1 {[%emt 0:00:06]} Kg6 {[%emt 0:00:44]} 37. Ra8 {[%emt 0:00:28]} Kf5 {[%emt 0:02:01]} 38. a7 {[%emt 0:00:54]} Ke5 {[%emt 0:03:17]} 39. Kc1 {[%emt 0:00:18]} Kf6 {[%emt 0:00:30]} 40. Kb1 {[%emt 0:00:40]} Ra6 {[%emt 0:00:15]} 41. Kb2 {[%emt 0:30:55]} Kg7 {[%emt 0:31:42]} 42. Kb3 {[%emt 0:00:16]} Ra1 {[%emt 0:00:07]} 43. Kb4 {[%emt 0:00:16]} Rb1+ {[%emt 0:00:22]} 44. Kc5 {[%emt 0:00:11]} Rc1+ {[%emt 0:00:07]} 45. Kd6 {[%emt 0:01:08]} Ra1 {[%emt 0:00:06]} 46. Ke5 {[%emt 0:09:47]} Ra5+ {[%emt 0:00:52]} 47. Ke4 {[%emt 0:00:06]} Ra4+ {[%emt 0:00:10]} 48. Ke3 {[%emt 0:00:03]} Ra3+ {[%emt 0:00:14]} 49. Kf2 {[%emt 0:00:03]} Ra2 {[%emt 0:00:07]} 50. h3 {[%emt 0:00:00]} Ra3 {[%emt 0:00:00]} 51. e3 {[%emt 0:00:00]} Ra2+ {[%emt 0:00:00]} 52. Ke1 {[%emt 0:00:00]} Ra3 {[%emt 0:00:00]} 53. Kd2 {[%emt 0:00:00]} Ra2+ {[%emt 0:00:00]} 54. Kd3 {[%emt 0:00:00]} Ra4 {[%emt 0:00:00]} 55. f4 {[%emt 0:00:00]} gxf4 {[%emt 0:00:00]} 56. exf4 {[%emt 0:00:00]} Ra3+ {[%emt 0:00:00]} 57. Kd4 {[%emt 0:00:00]} Ra4+ {[%emt 0:00:00]} 58. Kc5 {[%emt 0:00:00]} Ra1 {[%emt 0:00:00]} 59. g4 {[%emt 0:00:00]} Rc1+ {[%emt 0:00:00]} 60. Kd6 {[%emt 0:00:00]} Rd1+ {[%emt 0:00:00]} 61. Ke7 {[%emt 0:00:00]} Ra1 {[%emt 0:00:00]} 62. h4 {[%emt 0:00:00]} Ra5 {[%emt 0:00:00]} 63. Kd6 {[%emt 0:00:00]} Ra6+ {[%emt 0:00:00]} 64. Kc7 {[%emt 0:00:00]} Ra1 {[%emt 0:00:00]} 65. h5 {[%emt 0:00:00]} f6 {[%emt 0:00:00]} 66. Kb6 {[%emt 0:00:00]} Rb1+ {[%emt 0:00:00]} 67. Kc5 {[%emt 0:00:00]} Ra1 {[%emt 0:00:00]} 68. Kd4 {[%emt 0:00:00]} Ra4+ {[%emt 0:00:00]} 69. Ke3 {[%emt 0:00:00]} Ra3+ {[%emt 0:00:00]} 70. Ke4 {[%emt 0:00:00]} Ra4+ {[%emt 0:00:00]} 71. Kf3 {[%emt 0:00:00]} Ra3+ {[%emt 0:00:00]} 72. Kg2 {[%emt 0:00:00]} Ra2+ {[%emt 0:00:00]} 73. Kg3 {[%emt 0:00:00]} Ra3+ {[%emt 0:00:00]} 74. Kh4 {[%emt 0:00:00]} Ra4 {[%emt 0:00:00]} 75. Re8 {[%emt 0:00:00]} Rxa7 {[%emt 0:00:00]} 76. Rxe6 {[%emt 0:00:00]} Kf7 {[%emt 0:00:00]} 77. Re4 {[%emt 0:00:00]} Ra1 {[%emt 0:00:00]} 78. Rb4 {[%emt 0:00:00]} Ra7 {[%emt 0:00:00]} 79. Kg3 {[%emt 0:01:33]} Ra3+ {[%emt 0:01:02]} 80. Kf2 {[%emt 0:00:11]} Rc3 {[%emt 0:03:23]} 81. Rb7+ {[%emt 0:00:23]} Kg8 {[%emt 0:00:22]} 82. Re7 {[%emt 0:00:47]} Ra3 {[%emt 0:00:39]} 83. Re3 {[%emt 0:00:16]} Ra2+ {[%emt 0:00:16]} 84. Kf3 {[%emt 0:00:04]} Ra4 {[%emt 0:00:07]} 85. Re7 {[%emt 0:01:23]} Rb4 {[%emt 0:00:14]} 86. f5 {[%emt 0:02:40]} Ra4 {[%emt 0:01:46]} 87. Rc7 {[%emt 0:02:37]} Rb4 {[%emt 0:00:59]} 88. Rc6 {[%emt 0:01:17]} Kf7 {[%emt 0:01:04]} 89. Rc7+ {[%emt 0:00:20]} 1/2-1/2

[Event "121st Swiss Championship 2022"]
[Site "Samnaun-Compatsch"]
[Date "2022.07.05"]
[Round "2.1"]
[White "Bischofberger, Dario"]
[Black "Pavlovic, Milos"]
[Result "1/2-1/2"]
[ECO "E11"]
[WhiteElo "2180"]
[BlackElo "2461"]
[Annotator "TA"]
[PlyCount "191"]
[EventDate "2022.06.28"]
[EventType "swiss"]
[EventCountry "SUI"]
[SourceTitle "playchess.com"]
[Source "ChessBase"]
[SourceQuality "1"]
[TimeControl "40/5400+30:1800+30"]

{[%evp 17,191,9,19,25,28,17,20,20,21,16,20,7,23,22,31,20,4,-5,0,-6,45,-36,0,-48,-45,-102,-63,-158,-74,-78,0,0,0,-18,-10,-10,-8,-14,25,42,16,0,0,-146,-129,-137,-133,-222,-235,-187,-172,-206,-187,-238,-84,-268,-153,-134,0,-33,-28,-138,-20,-56,0,-35,-24,-30,-45,-19,-25,-16,0,0,0,0,0,0,0,0,156,90,63,5,227,210,203,203,368,378,378,378,378,378,378,378,372,281,247,68,68,68,68,0,68,68,68,68,68,77,77,49,49,49,49,0,0,0,0,0,0,0,0,0,0,0,0,0,0,0,0,0,0,0,0,0,0,0,0,0,0,0,0,0,0,0,0,0,0,0,22,22,22,22,29,4,29,0,29,0,29,0,10,10,29,0,0,0,0,0,0,0,0,0,0,0]} 1. d4 {[%emt 0:00:04]} Nf6 {[%emt 0:00:50]} 2. c4 {[%emt 0:00:15]} e6 {[%emt 0:00:35]} 3. g3 {[%emt 0:00:04]} Bb4+ {[%emt 0:01:39]} 4. Bd2 {[%emt 0:00:15]} Be7 {[%emt 0:00:21]} 5. Bg2 {[%emt 0:01:30]} d5 {[%emt 0:00:06]} 6. Nf3 {[%emt 0:00:17]} O-O {[%emt 0:00:08]} 7. O-O {[%emt 0:00:36]} c6 {[%emt 0:00:15]} 8. Qc2 {[%emt 0:01:37]} Nbd7 {[%emt 0:03:56]} 9. Rd1 {[%emt 0:04:30]} Ne4 {[%emt 0:16:22]} 10. Nc3 {[%emt 0:03:19][%cal Bb1c3,Bc3e2,Be2f4][%mdl 32] E11: Bogo-Indian.} f5 {[%emt 0:00:52] 10...Nxd2 is the hot move.} 11. e3 {[%emt 0:06:15]} Qe8 {[%emt 0:06:07]} 12. Ne2 {[%emt 0:05:20]} g5 {[%emt 0:03:49]} 13. Be1 {[%emt 0:18:10]} Bd6 {[%emt 0:26:46] [#]} 14. Nd2 $146 {[%emt 0:07:51]} ({Predecessor:} 14. b4 Qh5 15. a4 Ndf6 16. b5 Bd7 17. Rab1 Rac8 18. bxc6 Bxc6 19. Bb4 dxc4 20. Ne5 Bxe5 21. dxe5 {0-1 (26) Ivanchuk,V (2726)-Andreikin,D (2712) Huaian 2017}) 14... Nef6 {[%emt 0:06:53]} 15. f4 $1 {[%emt 0:18:30]} Ng4 {[%emt 0:04:02]} 16. Nf1 {[%emt 0:00:17]} gxf4 {[%emt 0:07:47]} 17. Nxf4 {[%emt 0:04:54]} Kh8 {[%emt 0:02:29]} 18. a3 {[%emt 0:05:04]} Ndf6 {[%emt 0:06:57]} (18... Rg8 $11) 19. b3 {[%emt 0:07:46]} (19. Bb4 $1 $14 Qe7 20. Bxd6 Qxd6 21. Re1) 19... a5 {[%emt 0:01:32]} 20. Ra2 {[%emt 0:01:24]} (20. b4 $11) 20... b6 $15 {[%emt 0:00:17]} 21. Qe2 {[%emt 0:09:09]} (21. h3 $15 Nh6 22. Rc1) 21... Ba6 {[%emt 0:01:04][%cal Oa5a4]} 22. Nd2 {[%emt 0:00:55]} (22. a4 $15) 22... Rg8 {[%emt 0:00:27]} (22... e5 $142 23. dxe5 Qxe5) 23. a4 {[%emt 0:03:17]} Ne4 {[%emt 0:00:57]} (23... Ra7 $17) 24. Nxe4 $11 {[%emt 0:00:40]} fxe4 {[%emt 0:00:08]} 25. Bh3 {[%emt 0:00:18]} h5 {[%emt 0:02:37]} 26. Kh1 {[%emt 0:00:26]} Ra7 {[%emt 0:00:16]} 27. Rc2 {[%emt 0:00:19]} b5 {[%emt 0:03:13]} 28. axb5 {[%emt 0:00:26]} cxb5 {[%emt 0:00:01]} 29. c5 {[%emt 0:00:43]} (29. Bxa5 bxc4 30. bxc4 Bxf4 31. gxf4 Bxc4 32. Rxc4 dxc4 $17) 29... Bxf4 {[%emt 0:00:32]} 30. Bxg4 {[%emt 0:00:35] [#]} (30. exf4 b4 31. Qd2 e3 $15) (30. gxf4 $11 {was the only way to keep the balance.} b4 31. Qd2) 30... b4 $1 $17 {[%emt 0:01:31]} 31. Qf2 {[%emt 0:00:38]} Bg5 {[%emt 0:01:58]} 32. Bh3 {[%emt 0:00:33]} (32. Be2 $17) 32... Rf7 {[%emt 0:00:17]} 33. Qg1 {[%emt 0:00:07]} Rgf8 {[%emt 0:01:32]} 34. Bf2 {[%emt 0:00:20]} Bd3 {[%emt 0:00:15]} 35. Rcd2 {[%emt 0:00:32]} (35. Rb2 $142) 35... Rf6 $2 {[%emt 0:00:22]} (35... e5 $19 {has better winning chances.} 36. Ra1 exd4 37. Rxa5 Qc6) 36. Rb2 $2 {[%emt 0:00:58]} (36. Ra1 $17 {was worth a try.}) 36... R8f7 {[%emt 0:00:44]} ({Black should try} 36... e5 $19 {aiming for ...exd4.} 37. dxe5 Qxe5) 37. Qe1 {[%emt 0:00:31]} Qb5 {[%emt 0:00:28]} ({Black should play} 37... e5 $17 {Strongly threatening ...exd4.} 38. Bg2 Kg7) 38. Rdd2 {[%emt 0:00:15]} Kh7 {[%emt 0:00:41]} 39. Kg1 {[%emt 0:00:28]} (39. Ra2 $11) 39... Rg7 {[%emt 0:00:39]} (39... Qe8 $17 {Threatens to win with ...e5.} 40. Qd1 Kh6) 40. Bg2 {[%emt 0:00:36]} Rgf7 {[%emt 0:00:33]} (40... a4 $15) 41. Ra2 {[%emt 0:07:08]} Ra7 {[%emt 0:12:09]} 42. g4 {[%emt 0:09:04]} Bh6 {[%emt 0:12:23]} (42... hxg4 43. Bh4 Bxh4 44. Qxh4+ Rh6 45. Qd8 $11) 43. Bh4 {[%emt 0:05:51]} Rg6 {[%emt 0:00:31]} 44. gxh5 {[%emt 0:00:59]} Rg4 {[%emt 0:00:07][%cal Og4h4]} 45. Bg3 {[%emt 0:01:17]} Qe8 $1 {[%emt 0:02:19]} 46. Rf2 {[%emt 0:06:46]} Qxh5 {[%emt 0:00:39]} 47. c6 {[%emt 0:00:28]} Rxg3 {[%emt 0:04:10]} 48. hxg3 {[%emt 0:00:13]} e5 $2 {[%emt 0:00:01] [#]} (48... Kg6 $11) 49. dxe5 {[%emt 0:02:11]} (49. Bf1 $142 $1) 49... Qxe5 $16 {[%emt 0:00:09]} 50. Rf4 {[%emt 0:00:35]} (50. Kh2 $1 $14 Rg7 51. Rf8) 50... Qc3 $2 {[%emt 0:00:53] [#]} (50... Bxf4 $11 {and Black has nothing to worry.} 51. gxf4 Qh5) 51. Qf2 $1 $18 {[%emt 0:00:32]} ({Worse is} 51. Qxc3 bxc3 52. Bh3 (52. Rh4 $2 c2 $19) 52... Bxf4 53. gxf4 (53. Bf5+ Kg7 $19) 53... Bb1 $17) 51... Bxf4 {[%emt 0:01:01]} 52. Qxf4 {[%emt 0:00:28]} Qxc6 $2 {[%emt 0:00:01]} (52... Qc1+ 53. Kh2 Qxc6) 53. Rf2 {[%emt 0:01:12] Dancing on a razor blade.} Qh6 {[%emt 0:00:27] [#] Inhibits Bh3. White must now prevent ...Qxf4.} 54. Bxe4+ $1 {[%emt 0:00:20][%mdl 512]} Bxe4 {[%emt 0:00:41][%csl Ge4][%cal Rh6h1]} (54... dxe4 $2 55. Rh2 Qxh2+ 56. Kxh2 $18) 55. Rh2 {[%emt 0:00:04] Against Qh1+} Qxh2+ {[%emt 0:00:22]} 56. Kxh2 {[%emt 0:00:01][%mdl 4096] Endgame KQ-KRB} Rb7 {[%emt 0:01:56][%cal Oa5a4]} 57. Qf6 {[%emt 0:01:12] Hoping for Qa6.} Rc7 {[%emt 0:00:30]} 58. Qb6 $2 {[%emt 0:00:38]} (58. Qh4+ $18 Kg6 59. Qg4+ Kh7 60. Qh5+ Kg8 61. Qe8+ Kh7 62. g4) 58... Rc3 $1 $14 {[%emt 0:00:03]} 59. Qxa5 {[%emt 0:00:37]} Rxb3 {[%emt 0:00:03]} 60. g4 {[%emt 0:00:29]} (60. Qa7+ $14 Kg6 61. Kh3) 60... Kg6 {[%emt 0:00:32]} ({Better is} 60... Rb1 $1 $11) 61. Qb6+ $1 {[%emt 0:00:13]} Kg5 {[%emt 0:00:09]} 62. Kg3 $1 {[%emt 0:00:27]} Rb1 $1 {[%emt 0:00:07]} 63. Qd8+ {[%emt 0:00:11]} Kg6 {[%emt 0:00:00]} 64. Kf4 {[%emt 0:00:45] Qg8+ is the strong threat.} Rf1+ {[%emt 0:01:32]} 65. Ke5 {[%emt 0:00:23]} b3 {[%emt 0:00:40]} 66. Qb6+ {[%emt 0:01:02]} (66. Qe8+ $14 Kh6 67. Qb5) 66... Kg5 $11 {[%emt 0:00:02]} 67. Qxb3 {[%emt 0:00:21]} Kxg4 {[%emt 0:00:09]} 68. Qb5 {[%emt 0:00:38]} Re1 {[%emt 0:01:43]} 69. Qd7+ {[%emt 0:00:30]} Kf3 {[%emt 0:00:58]} 70. Qh3+ {[%emt 0:00:03]} Ke2 {[%emt 0:00:07]} 71. Kd4 {[%emt 0:00:52]} Rd1+ {[%emt 0:00:09]} 72. Ke5 {[%emt 0:00:09]} Kd3 {[%emt 0:00:19]} 73. Qg3 {[%emt 0:00:43]} Rf1 {[%emt 0:00:30]} 74. Qh4 {[%emt 0:00:52]} Rf5+ {[%emt 0:00:09]} 75. Kd6 {[%emt 0:00:16]} Rf3 {[%emt 0:00:32]} 76. Qe1 {[%emt 0:00:33]} Rxe3 {[%emt 0:01:19]} 77. Qd1+ {[%emt 0:00:01]} Kc4 {[%emt 0:00:43]} 78. Qa4+ {[%emt 0:00:36]} Kc3 {[%emt 0:00:24]} 79. Qa3+ {[%emt 0:00:31]} Kd2 {[%emt 0:00:09]} 80. Qb2+ {[%emt 0:00:27]} Ke1 {[%emt 0:00:24]} 81. Qc1+ {[%emt 0:00:53]} Kf2 {[%emt 0:00:19]} 82. Qd2+ {[%emt 0:00:23]} Kf3 {[%emt 0:00:10]} 83. Kc5 {[%emt 0:00:35]} Rd3 {[%emt 0:00:15]} 84. Qe1 {[%emt 0:00:34][%mdl 1024] White has compensation.} Kf4 {[%emt 0:01:17]} 85. Qf2+ {[%emt 0:00:20]} Kg4 {[%emt 0:00:34]} 86. Qf6 {[%emt 0:00:32]} Rd1 {[%emt 0:00:58]} 87. Kb4 {[%emt 0:00:46]} Rd3 {[%emt 0:00:49]} 88. Qf8 {[%emt 0:00:28]} Rf3 {[%emt 0:00:17]} 89. Qd6 {[%emt 0:00:19]} Rf2 {[%emt 0:00:16]} 90. Qd7+ {[%emt 0:00:27]} Kf4 {[%emt 0:00:12]} 91. Kc3 {[%emt 0:00:32]} Rc2+ {[%emt 0:00:08] The position is equal.} 92. Kb3 {[%emt 0:00:09]} Ke3 {[%emt 0:00:38]} 93. Qh3+ {[%emt 0:00:16]} Kd4 {[%emt 0:00:22]} 94. Qh8+ {[%emt 0:00:38]} Kd3 {[%emt 0:00:33]} 95. Qh3+ {[%emt 0:00:21]} Kd4 {[%emt 0:00:12]} 96. Qh8+ {[%emt 0:00:07] White used his chance.  Weighted Error Value: White=0.35/Black=0.40} 1/2-1/2

[Event "121st Swiss Championship 2022"]
[Site "Samnaun-Compatsch"]
[Date "2022.07.05"]
[Round "2.2"]
[White "Baenziger, Fabian"]
[Black "Ferster, Fabian"]
[Result "1-0"]
[ECO "D85"]
[WhiteElo "2451"]
[BlackElo "2173"]
[Annotator "TA"]
[PlyCount "67"]
[EventDate "2022.06.28"]
[EventType "swiss"]
[EventCountry "SUI"]
[SourceTitle "playchess.com"]
[Source "ChessBase"]
[SourceQuality "1"]
[TimeControl "40/5400+30:1800+30"]

{[%evp 18,67,0,0,0,0,10,14,2,7,20,4,14,4,18,14,8,19,25,4,10,0,0,0,0,0,0,-6,0,0,15,12,13,27,77,16,12,9,19,22,563,557,798,799,2006,1947,2263,2179,29988,29986,29998,29999]} 1. d4 {[%emt 0:00:05]} Nf6 {[%emt 0:00:13]} 2. c4 {[%emt 0:00:18]} g6 {[%emt 0:00:14]} 3. Nc3 {[%emt 0:00:20]} d5 {[%emt 0:00:53]} 4. Nf3 {[%emt 0:00:57]} Bg7 {[%emt 0:00:52]} 5. h3 {[%emt 0:01:10]} O-O {[%emt 0:08:02]} 6. cxd5 {[%emt 0:00:22]} Nxd5 {[%emt 0:00:08]} 7. e4 {[%emt 0:00:04]} Nxc3 {[%emt 0:00:09]} 8. bxc3 {[%emt 0:00:06]} c5 {[%emt 0:00:13]} 9. Be2 {[%emt 0:00:09]} Nc6 {[%emt 0:00:33]} 10. Be3 {[%emt 0:00:17]} cxd4 {[%emt 0:00:39] D85: Exchange Grünfeld: Unusual White 7th moves and lines with 7 Nf3.} 11. cxd4 {[%emt 0:01:15]} f5 {[%emt 0:03:01]} 12. Bc4+ {[%emt 0:01:30]} Kh8 {[%emt 0:01:12] The position is equal.} 13. O-O {[%emt 0:00:17]} f4 {[%emt 0:12:21]} 14. Bd2 {[%emt 0:00:23] aiming for Bc3.} Nxd4 {[%emt 0:07:06]} 15. Bc3 {[%emt 0:00:44][%cal Rc3d4]} Be6 {[%emt 0:05:05]} 16. Bxe6 {[%emt 0:11:18]} Nxe6 {[%emt 0:00:33]} 17. Qb3 {[%emt 0:05:20]} Qb6 $1 {[%emt 0:02:31]} 18. Bxg7+ {[%emt 0:05:53]} Nxg7 {[%emt 0:10:19] [#]} 19. Qxb6 $146 {[%emt 0:06:12]} ({Predecessor:} 19. Qa3 Qe6 20. Rac1 Rfc8 21. Rxc8+ Rxc8 22. Qxa7 Qa6 23. Qd4 Qxa2 24. Qd7 Qe6 25. Qxb7 {1-0 (69) Girya,O (2479)-Bodnaruk,A (2423) Germany 2019}) 19... axb6 {[%emt 0:00:45]} 20. Rab1 {[%emt 0:03:04]} Rf6 {[%emt 0:13:23]} 21. Rfd1 {[%emt 0:02:00]} h6 {[%emt 0:03:18]} 22. h4 {[%emt 0:16:05]} Re6 {[%emt 0:11:57]} 23. Rb4 {[%emt 0:08:31]} Kh7 {[%emt 0:03:46]} 24. e5 {[%emt 0:08:57][%mdl 1024] White has compensation.} Nh5 {[%emt 0:06:18]} 25. a4 {[%emt 0:02:36]} Rc8 {[%emt 0:00:57]} (25... Kg7 $11 {remains equal.}) 26. Rb5 {[%emt 0:05:16] White is more active.} (26. Rd7 $16) 26... Rec6 $11 {[%emt 0:03:56]} 27. Rd7 $36 {[%emt 0:01:39][%csl LRb7,LRe7][%mdl 2048] White has some pressure.} Rc1+ {[%emt 0:03:17]} 28. Kh2 {[%emt 0:00:05]} Rf1 $2 {[%emt 0:00:17][%mdl 8192] [#] Loses the game.} (28... R1c7 $11 {and Black stays safe.} 29. Rd4 Kg7) 29. Rxe7+ $18 {[%emt 0:02:58]} Kg8 {[%emt 0:00:16]} 30. Rxb6 {[%emt 0:04:40]} Rxf2 {[%emt 0:01:58]} 31. Rxg6+ {[%emt 0:00:22]} Kf8 {[%emt 0:00:04]} 32. Rxb7 {[%emt 0:01:23]} Rcc2 {[%emt 0:01:34] [#]} 33. e6 $1 {[%emt 0:00:16]} Rce2 {[%emt 0:00:39]} (33... Rxg2+ 34. Rxg2) 34. Rf7+ {[%emt 0:00:08] Weighted Error Value: White=0.08 (flawless) /Black=0.70} 1-0

[Event "121st Swiss Championship 2022"]
[Site "Samnaun-Compatsch"]
[Date "2022.07.05"]
[Round "2.3"]
[White "Salzgeber, Frank"]
[Black "Gallagher, Joseph G."]
[Result "1/2-1/2"]
[ECO "E69"]
[WhiteElo "2131"]
[BlackElo "2447"]
[Annotator "TA"]
[PlyCount "84"]
[EventDate "2022.06.28"]
[EventType "swiss"]
[EventCountry "SUI"]
[SourceTitle "playchess.com"]
[Source "ChessBase"]
[SourceQuality "1"]
[TimeControl "40/5400+30:1800+30"]

{[%evp 28,84,54,56,56,33,47,56,56,35,41,36,47,31,44,62,52,54,113,125,117,101,124,48,91,81,91,87,84,89,105,71,61,56,72,62,78,78,89,76,120,91,114,79,72,66,123,74,269,262,262,226,238,218,204,0,0,-1611,-713]} 1. d4 {[%emt 0:00:03]} d6 {[%emt 0:00:22]} 2. Nf3 {[%emt 0:00:24]} Nf6 {[%emt 0:01:39]} 3. c4 {[%emt 0:00:16]} g6 {[%emt 0:00:12]} 4. Nc3 {[%emt 0:00:07]} Bg7 {[%emt 0:00:05]} 5. g3 {[%emt 0:00:49]} O-O {[%emt 0:02:06]} 6. Bg2 {[%emt 0:00:05]} Nbd7 {[%emt 0:03:04]} 7. O-O {[%emt 0:00:18]} e5 {[%emt 0:00:03]} 8. e4 {[%emt 0:01:10]} c6 {[%emt 0:03:00]} 9. h3 {[%emt 0:00:33]} Qa5 {[%emt 0:01:34]} 10. Re1 {[%emt 0:04:17]} exd4 {[%emt 0:01:59]} 11. Nxd4 {[%emt 0:00:10]} Ne5 {[%emt 0:00:08]} 12. Bf1 {[%emt 0:01:06]} Re8 {[%emt 0:03:10]} 13. Be3 {[%emt 0:01:03]} Be6 {[%emt 0:02:02]} 14. Nxe6 {[%emt 0:01:48]} Rxe6 {[%emt 0:00:07]} 15. Kg2 {[%emt 0:00:38]} Rae8 {[%emt 0:01:35] E69: King's Indian: Fianchetto: 6...Nbd7 7 0-0 e5 8 e4 c6 9 h3.} 16. Rb1 {[%emt 0:01:13]} Ned7 {[%emt 0:04:29]} 17. f3 {[%emt 0:03:07]} h5 {[%emt 0:03:21][%cal Oh5h4] [#] White is slightly better.} 18. h4 $146 {[%emt 0:10:24]} ({Predecessor:} 18. b4 Qc7 19. Qd2 Nh7 20. Ne2 g5 21. Rbd1 g4 22. Nf4 gxf3+ 23. Kxf3 Re5 24. Bd4 Rxe4 25. Bxg7 Rxe1 26. Rxe1 Rxe1 27. Qxe1 Kxg7 28. Nxh5+ {½-½ (57) Pommrich,R (2265)-Hansen,L (2176) ICCF email 2014}) 18... a6 {[%emt 0:09:55]} 19. b4 {[%emt 0:05:54]} Qd8 {[%emt 0:03:18]} 20. Qd2 {[%emt 0:01:45]} Qe7 {[%emt 0:12:34]} 21. Bf2 {[%emt 0:41:46]} Nh7 {[%emt 0:08:31]} 22. Ne2 {[%emt 0:06:34]} Ne5 {[%emt 0:03:42]} (22... g5 $14) 23. Nd4 $16 {[%emt 0:03:37]} Rf6 {[%emt 0:00:49]} 24. c5 {[%emt 0:00:24]} Rd8 {[%emt 0:07:52]} 25. Qc3 {[%emt 0:09:49]} (25. Rbd1 $16) 25... Nf8 {[%emt 0:08:43]} 26. Rbd1 {[%emt 0:02:00]} a5 {[%emt 0:11:03]} 27. a3 $1 {[%emt 0:00:08]} axb4 {[%emt 0:00:05]} 28. axb4 {[%emt 0:00:01]} Ra8 {[%emt 0:01:02]} 29. cxd6 {[%emt 0:03:24]} Rxd6 {[%emt 0:00:06]} 30. f4 $1 {[%emt 0:00:24]} Ng4 {[%emt 0:00:09] ...Ra2 is the strong threat.} 31. e5 {[%emt 0:00:09]} Rdd8 {[%emt 0:00:39]} 32. Bc4 {[%emt 0:00:58]} Nxf2 {[%emt 0:03:13]} 33. Kxf2 {[%emt 0:00:02]} Kh8 {[%emt 0:03:21]} 34. Nf3 {[%emt 0:00:42] Hoping for Ng5. White is much more active.} Ne6 {[%emt 0:00:54]} 35. Ng5 {[%emt 0:00:41]} Nxg5 {[%emt 0:01:28]} 36. hxg5 {[%emt 0:00:01]} Bf8 {[%emt 0:01:04] [#]} (36... Kg8 $14) 37. e6+ {[%emt 0:01:51]} (37. Rd6 $142 $1) 37... Bg7 $2 {[%emt 0:00:08] [#]} (37... Kh7 $16 {was necessary.}) 38. exf7 $1 $18 {[%emt 0:01:06]} Qxf7 {[%emt 0:01:16]} 39. Bxf7 {[%emt 0:00:11]} Bxc3 {[%emt 0:00:06]} 40. Rxd8+ {[%emt 0:00:27]} ({Stronger than} 40. Bxg6 Bxe1+ 41. Rxe1 Rd2+ 42. Kf3 Ra3+ 43. Ke4 (43. Re3 Rxe3+ 44. Kxe3 Rh2 $17) 43... Kg7 44. Bxh5 Rxg3 $15) 40... Rxd8 {[%emt 0:00:05] [#]} 41. Re8+ {[%emt 0:02:13]} ({Inferior is} 41. Bxg6 Bxe1+ 42. Kxe1 Rd4 43. Bxh5 Rxb4 $17) ({Better is} 41. Re6 $1 $18) 41... Rxe8 $11 {[%emt 0:00:06]} 42. Bb3 $2 {[%emt 0:00:39][%mdl 8192]} (42. Bxe8 $11 Kg7 43. b5) 42... Bg7 {[%emt 0:00:16][%mdl 32768] Weighted Error Value: White=0.42/Black=0.24 (precise) . An unexpected result.} 1/2-1/2